Cogmind - Beta 16.1 @@@ ROGUE MODE // 2026.04.03 @ 12:25:33 Player: KURIIRI Result: Self-destructed Performance ------------- Evolutions (6) 3000 Regions Visited (17) 3400 Robots Destroyed (152) 760 Value Destroyed (6338) 6338 Prototype IDs (16) 320 Alien Tech Used (0) 0 Bonus (4650) 4650 TOTAL SCORE: 18468 Bonus ------- High Alert Combat Kills 549 Follower Combat Kills 1648 Network Hubs Disabled 600 Registered with UFD 300 Met Optimus in HQ 500 Met Imprinter 300 Built Enhanced Grunts 300 Met R17 at Cetus 500 Friendly Fire -47 Cogmind --------- Core Integrity 1068/1150 Matter 255/300 Energy 187/190 System Corruption 1% Temperature Cool (6) Movement Hovering (48) Location -4/Factory Parts ------- > --- POWER (2) -------- Light Deuterium Engine Micro Fission Core > --- PROPULSION (5) --- Improved Hover Unit Improved Hover Unit Antigrav System Antigrav System > --- UTILITY (10) ----- Enhanced Optical Array Long-range Sensor Array Seismic Detector Advanced Melee Analysis Suite Advanced Melee Analysis Suite Advanced Melee Analysis Suite Energy Filter Advanced Thermal Shield System Shield > --- WEAPON (2) ------- Ripper CR-A16's Pointy Stick > --- INVENTORY (5) ---- Long-range Sensor Array Centrium Medium Armor Plating System Restoration Module Hardcell Cannon Multitool Peak State ------------ > --- POWER ------------ Quantum Reactor > --- PROPULSION ------- Improved Titanium Leg Flexi-carbon Leg Flexi-carbon Leg Thunder Leg Improved Thunder Leg > --- UTILITY ---------- Large Storage Unit Advanced Signal Interpreter Improved Melee Analysis Suite Centrium Medium Armor Plating Centrium Medium Armor Plating Centrium Medium Armor Plating Advanced Shield Generator Hacking Suite Improved System Restoration Module > --- WEAPON ----------- Companion Sword Plasma Sword > --- INVENTORY -------- Fission Core Neutrino Core Carbon-fiber Leg Flexi-carbon Leg Flexi-carbon Leg Structural Scanner Centrium Medium Armor Plating Centrium Medium Armor Plating Proton Missile Launcher Remote Datajack Multitool Powered Hammer Ripper CR-A16's Pointy Stick [Rating: 107] Favorites ----------- Power Light Angular Momentum Engine Engine Light Angular Momentum Engine Power Core Fission Core Reactor Quantum Reactor Propulsion Armored Wheel Treads Light Treads Leg Flexi-carbon Leg Wheel Armored Wheel Hover Unit Antigrav System Utility Large Storage Unit Device Structural Scanner Storage Large Storage Unit Processor Improved Melee Analysis Suite Hackware Hacking Suite Protection Centrium Medium Armor Plating Weapon Companion Sword Energy Gun Subdweller Laser Energy Cannon Proton Cannon Ballistic Gun Subdweller Machine Gun Ballistic Cannon Advanced Assault Cannon Launcher Proton Missile Launcher Special Weapon Improved Plasma Cutter Impact Weapon Powered Hammer Slashing Weapon Companion Sword Piercing Weapon CR-A16's Pointy Stick Build | -11 -10 -10 -8 -8 -6 -6 -6 -6 -6 -6 -5 -5 -5 -5 -5 -5 -4 ------- Run | Yrd Mat Sub Rec Scr Fac Was Fac Low Low Zio Pro Fac Ext Cet Arc Hub Fac Slots Evolved 12 | . . . . . 8 . . . . . . 2 . . . . 2 Power 1 | . . . . . . . . . . . . . . . . . 1 Propulsion 3 | . . . . . 3 . . . . . . . . . . . . Utility 8 | . . . . . 5 . . . . . . 2 . . . . 1 Weapon . | . . . . . . . . . . . . . . . . . . Parts Attached 168 | 3 6 15 4 5 5 1 31 11 2 3 12 13 16 6 6 9 20 Power 16 | . . 2 1 1 . . 2 2 . . 2 1 1 . 1 . 3 Engine 6 | . . 2 1 . . . . 1 . . 1 . . . . . 1 Core 9 | . . . . 1 . . 2 1 . . 1 1 1 . . . 2 Reactor 1 | . . . . . . . . . . . . . . . 1 . . Propulsion 54 | 2 . 4 . 1 2 . 15 4 . 1 6 3 6 1 . 4 5 Treads 4 | 2 . . . . . . . 1 . 1 . . . . . . . Leg 24 | . . . . . . . 4 . . . 6 3 6 1 . 3 1 Wheel 19 | . . 4 . 1 1 . 10 3 . . . . . . . . . Hover 7 | . . . . . 1 . 1 . . . . . . . . 1 4 Flight . | . . . . . . . . . . . . . . . . . . Utility 64 | 1 2 . 1 . 3 1 9 4 . 1 3 8 7 4 5 3 12 Device 26 | 1 . . . . 2 . 4 2 . . 1 3 2 . 3 1 7 Storage 2 | . 1 . . . . . . . . . . 1 . . . . . Processor 12 | . 1 . . . . 1 2 1 . 1 . 1 . . . 1 4 Hackware 5 | . . . 1 . 1 . . . . . . 1 . . 1 . 1 Protection 19 | . . . . . . . 3 1 . . 2 2 5 4 1 1 . Artifact . | . . . . . . . . . . . . . . . . . . Weapon 34 | . 4 9 2 3 . . 5 1 2 1 1 1 2 1 . 2 . Energy Gun 15 | . 4 5 1 . . . 2 . 1 . . . . . . 2 . Energy Cannon 2 | . . . . 2 . . . . . . . . . . . . . Ballistic Gun 2 | . . 2 . . . . . . . . . . . . . . . Ballistic Cannon 1 | . . . . . . . . . 1 . . . . . . . . Launcher 4 | . . 2 . . . . 1 . . . 1 . . . . . . Special Weapon 4 | . . . 1 . . . 1 . . 1 . . 1 . . . . Impact Weapon 1 | . . . . . . . 1 . . . . . . . . . . Slashing Weapon 4 | . . . . 1 . . . 1 . . . 1 . 1 . . . Piercing Weapon 1 | . . . . . . . . . . . . . 1 . . . . Special Melee Weapon . | . . . . . . . . . . . . . . . . . . Unidentified Prototypes 5 | . . . . 1 . 1 . . . . . 2 . 1 . . . Corrupted Parts 6 | . . . . . . . 1 . . . 4 . . . 1 . . System Corruption 41 | . . . . . . . 2 . . . 29 . . . 10 . . Parts Lost 61 | . . 8 . . . 1 21 1 . . 11 4 5 . . 8 2 Power 8 | . . 2 . . . 1 2 . . . 2 1 . . . . . Propulsion 27 | . . 3 . . . . 11 . . . 5 2 2 . . 3 1 Utility 19 | . . . . . . . 5 1 . . 4 1 3 . . 4 1 Weapon 7 | . . 3 . . . . 3 . . . . . . . . 1 . Highest Loss Streak 9 | . . 2 . . . 1 9 1 . . 5 1 4 . . 5 2 To Critical Strikes 3 | . . . . . . . 1 . . . . 2 . . . . . Average Backups 12 | 5 9 12 14 12 6 6 12 13 15 15 13 12 14 14 14 14 4 Power . | 1 . . . . . . . . 1 2 1 . . 1 1 . . Propulsion 2 | 3 3 2 1 1 . . 1 3 3 3 3 3 3 3 3 2 . Utility 3 | . . 1 3 4 1 . 4 3 3 3 2 2 3 3 3 5 1 Weapon 4 | 1 5 8 7 3 2 3 3 3 4 4 4 4 3 4 3 3 1 Tool/Special . | . . . . . . . . . . . . . . . . . . Unused Backups 54 | . 6 1 2 12 . 8 3 2 1 2 . 2 2 2 . 5 6 Power 6 | . 2 1 . 1 . 1 . . . . . . . . . 1 . Propulsion 5 | . 2 . . . . . . . 1 . . 2 . . . . . Utility 26 | . 1 . . 8 . 5 1 2 . . . . 1 2 . 3 3 Weapon 15 | . 1 . 2 3 . 2 1 . . 1 . . 1 . . 1 3 Tool/Special 2 | . . . . . . . 1 . . 1 . . . . . . . Average Slot Usage (%) 92 | . 100 98 96 89 77 82 81 95 100 99 87 94 92 99 96 86 67 Engine 5 | . 14 13 14 7 . . . 1 6 6 3 3 . . . . 1 Core 2 | . . . . 6 6 4 4 1 . . . 1 5 5 . . 3 Treads 2 | . 28 4 . . . . . 2 . . 4 . . . . . . Leg 8 | . . . . . . . 3 2 . . 11 28 27 29 29 26 1 Wheel 15 | . . 22 28 26 18 17 19 26 33 32 8 . . . . . . Device 8 | . 10 . . . 15 20 8 12 13 10 9 14 10 11 11 9 22 Storage 8 | . 14 14 14 14 6 6 6 6 6 6 6 5 5 5 5 4 . Processor 9 | . 3 14 7 . . . 5 13 13 15 20 17 12 11 11 10 9 Hackware 6 | . . . 6 14 11 13 10 6 6 6 2 4 5 5 5 4 1 Protection 4 | . . . . . . . 3 6 6 6 4 3 10 16 13 10 . Energy Gun 4 | . 27 22 12 . . . 1 . . . . . . . . . 2 Energy Cannon 2 | . . . . 15 6 6 4 . . . . . . . . . . Slashing Weapon 6 | . . . . 2 6 6 6 9 12 13 11 10 10 6 11 9 3 Peak Build Rating 107 | 9 13 15 17 25 35 41 55 49 49 54 60 88 92 100 107 103 92 Average Rating 47 | 7 11 14 15 19 34 34 44 45 47 49 53 77 83 96 100 89 68 On Entrance 42 | 6 9 12 14 13 23 35 31 38 48 48 54 57 82 87 100 96 19 Avg Prop Armor Cover (%) 8 | . . 14 . . 5 5 7 9 . 9 9 . . . . 4 6 Naked Turns 45 | . . . . . . . . . . . . . . . . 45 . Heaviest Build 80 | 15 32 33 35 41 43 43 62 47 46 46 58 60 66 67 75 80 31 Greatest Support 119 | 40 40 40 24 28 44 44 58 54 54 54 85 111 119 119 111 111 47 Greatest Overweight (x) 4 | . . 2 1 3 . 1 4 1 . 1 2 . . . . 3 1 Average Overweight (x) . | . . 1 1 1 . . . . . . . . . . . . . Largest Inventory Capacity 15 | 8 15 15 15 15 15 15 15 15 15 15 15 15 15 15 15 15 5 Average Capacity 14 | 8 13 15 15 15 15 15 15 15 15 15 15 15 15 15 15 14 5 Most Carried 15 | 6 13 15 15 15 10 6 15 15 15 15 15 15 15 15 15 15 5 Average Carried 12 | 5 9 12 14 12 5 6 12 13 15 14 13 12 14 14 14 14 4 Final Capacity 15 | 8 15 15 15 15 15 15 15 15 15 15 15 15 15 15 15 5 5 Final Carried 15 | 4 13 13 15 11 6 6 12 15 15 15 14 13 14 14 15 5 5 Class Distribution -------------------- 37% | Mutant 27% | Scavenger-Gladiator 13% | Commander-Gladiator 8% | Hacker-Mutant 4% | Scavenger-Mutant 3% | Gladiator Dominant Class ---------------- Mutant | -10/Materials Mutant | -10/Subcaves Mutant | -8/Recycling Mutant | -8/Scraptown Derelict-Mutant | -6/Factory Derelict-Mutant | -6/Waste Hacker-Mutant | -6/Factory Scavenger-Gladiator | -6/Lower Caves Scavenger-Gladiator | -6/Lower Caves Scavenger-Gladiator | -6/Zion Derelict-Gladiator | -5/Proximity Caves Scavenger-Gladiator | -5/Factory Commander-Gladiator | -5/Extension Commander-Mutant | -5/Cetus Commander-Gladiator | -5/Archives Commander-Gladiator | -5/Hub_04(d) Scavenger-Gladiator | -4/Factory Resources | -11 -10 -10 -8 -8 -6 -6 -6 -6 -6 -6 -5 -5 -5 -5 -5 -5 -4 ----------- Run | Yrd Mat Sub Rec Scr Fac Was Fac Low Low Zio Pro Fac Ext Cet Arc Hub Fac Matter Collected 2725 | 219 152 306 147 40 70 . 382 149 64 60 140 237 231 125 120 82 201 Remotely . | . . . . . . . . . . . . . . . . . . Salvage Created 7650 | 80 482 452 166 . . . 1324 986 307 . 470 488 1109 695 285 584 222 Parts 375 | 7 38 29 5 . . . 83 13 8 . 26 21 38 28 26 35 18 Haulers Intercepted 2 | . 1 . . . . . . . . . . . 1 . . . . Recyclers Shooed 2 | . 1 . . . . . 1 . . . . . . . . . . Parts Field Recycled . | . . . . . . . . . . . . . . . . . . Retrieved Matter . | . . . . . . . . . . . . . . . . . . Parts Self-Destructed 43 | . . 12 . . . . . 3 8 . 20 . . . . . . Prevented 8 | . . . . . . . . . . . 8 . . . . . . Parts Restored . | . . . . . . . . . . . . . . . . . . Kills | -11 -10 -10 -8 -8 -6 -6 -6 -6 -6 -6 -5 -5 -5 -5 -5 -5 -4 ------- Run | Yrd Mat Sub Rec Scr Fac Was Fac Low Low Zio Pro Fac Ext Cet Arc Hub Fac Combat Hostiles Destroyed 110 | . 14 15 2 . . . 20 3 4 . 10 7 16 8 . 8 3 Melee 63 | . . . . . . . 17 3 4 . 7 7 14 . . 8 3 Guns 27 | . 14 11 2 . . . . . . . . . . . . . . AOE 12 | . . 4 . . . . 3 . . . 2 . 2 1 . . . Classes Destroyed 20 | 2 6 5 . . . . 3 2 . . . . 1 . . 1 . Worker 7 | . 1 . . . . . 5 . . . . . . . . 1 . Builder 4 | . . . . . . . 1 . . . . . 1 . . 2 . Tunneler 4 | 1 . . . . . . 3 . . . . . . . . . . Hauler 2 | . 1 . . . . . . . . . . . 1 . . . . Recycler 5 | 1 . . 1 . . . 1 . . . . . 1 . . 1 . Operator 12 | . 1 . . . . . 1 . . . . . . . 8 1 1 Turret 1 | . . 1 . . . . . . . . . . . . . . . Watcher 7 | . 3 . . . . . 1 . . . . . . 2 . 1 . Swarmer 24 | . 3 3 . . . . 7 . . . 5 . 4 . . 2 . Saboteur 1 | . . . . . . . . . . . . . . . . 1 . Grunt 35 | . 11 2 . . . . 1 . 4 . 3 2 9 . . 3 . Sentry 15 | . . 1 2 . . . 5 . . . . 3 2 . . 1 1 Hunter 6 | . . . . . . . 4 . . . 2 . . . . . . Programmer 8 | . . . . . . . 3 . . . . 2 . . . 1 2 Behemoth 1 | . . . . . . . . . . . . . 1 . . . . Cetus Guard 8 | . . . . . . . . . . . . . . 8 . . . Artisan 1 | . . 1 . . . . . . . . . . . . . . . Subdweller 9 | . . 9 . . . . . . . . . . . . . . . Scientist 1 | . . 1 . . . . . . . . . . . . . . . Packrat 3 | . . . . . . . . 3 . . . . . . . . . Samaritan 1 | . . . . . . . . 1 . . . . . . . . . Thug 1 | . . . . . . . . 1 . . . . . . . . . Fireman 2 | . . . . . . . . 2 . . . . . . . . . Best Kill Streak 8 | 2 3 3 1 . . . 8 3 4 . 3 2 3 5 4 4 2 Combat Bots Only 7 | . 3 3 1 . . . 7 3 4 . 3 2 2 4 . 2 2 Max Kills in Single Turn 3 | 1 2 1 1 . . . 1 1 1 . 2 1 2 3 1 1 1 Gunslinging 1 | . 1 . . . . . . . . . . . . . . . . Exploded 2 | . . 1 . . . . 1 . . . 2 . 1 1 . . . Melee 1 | . . . . . . . 1 1 1 . 1 1 1 . . 1 1 Uniques/NPCs Destroyed . | . . . . . . . . . . . . . . . . . . Combat | -11 -10 -10 -8 -8 -6 -6 -6 -6 -6 -6 -5 -5 -5 -5 -5 -5 -4 -------- Run | Yrd Mat Sub Rec Scr Fac Was Fac Low Low Zio Pro Fac Ext Cet Arc Hub Fac Hostile Shots Fired 1100 | . 40 88 2 . . 1 393 5 11 . 91 92 157 19 13 164 24 Missed 369 | . 11 34 . . . . 103 1 4 . 19 46 67 10 7 54 13 Hits 731 | . 29 54 2 . . 1 290 4 7 . 72 46 90 9 6 110 11 Melee 2 | . . . . . . 1 . . . . . . . . . 1 . Projectile 729 | . 29 54 2 . . . 290 4 7 . 72 46 90 9 6 109 11 Critical Strikes 26 | . 1 2 1 . . . 3 1 1 . 2 4 7 . . 4 . Part Disruptions 3 | . . . . . . . 1 . . . . . . . . 2 . Damage Taken 12085 | . 343 875 31 . . 24 3062 87 176 . 1244 1038 1934 176 176 2695 224 Core 2024 | . 34 172 . . . . 459 45 40 . 203 40 231 . 27 691 82 Absorbed by Shields 1055 | . . . . . . 9 423 . . . . . 172 61 62 328 . Ignored by Resistances 7 | . . . . . . . . . . . . . . . . . 7 Regen/Repaired (Parts) 72 | . . . . . . . 72 . . . . . . . . . . Core Remaining (%) 32 | 100 . . . 17 . . . . . . 12 . . . . 1 . Volleys Fired 163 | 5 44 79 5 . . . 6 . 4 2 4 3 2 9 . . . Largest 2 | 2 2 2 2 . . . 1 . 1 1 1 1 1 1 . . . Hottest 130 | 70 130 130 90 . . . 60 . 40 5 39 39 39 39 . . . Shots Fired 260 | 10 79 130 10 . . . 6 . 4 2 5 3 2 9 . . . Gun 215 | 10 79 116 10 . . . . . . . . . . . . . . Cannon 7 | . . . . . . . 3 . 4 . . . . . . . . Launcher 36 | . . 14 . . . . 3 . . . 5 3 2 9 . . . Special 2 | . . . . . . . . . . 2 . . . . . . . Kinetic 34 | 5 . 20 5 . . . . . 4 . . . . . . . . Thermal 188 | 5 79 96 5 . . . 3 . . . . . . . . . . Explosive 14 | . . 14 . . . . . . . . . . . . . . . Electromagnetic 22 | . . . . . . . 3 . . . 5 3 2 9 . . . Robot Hit Streak 29 | 2 11 29 4 . . . 2 . . 4 7 . 8 . . . . Robot Miss Streak 7 | 1 7 4 2 . . . 1 . . . . . . . . . . Penetration Max . | . . . . . . . . . . . . . . . . . . Secondary Targets 4 | . 3 1 . . . . . . . . . . . . . . . Max Gunslinging Chain 1 | . 1 1 . . . . . . . . . . . . . . . Shots Hit Robots 437 | 5 70 66 6 . . . 84 25 10 2 26 27 64 . 14 31 7 Core Hits 289 | 3 86 52 4 . . . 35 10 3 . 14 13 25 20 5 13 6 Critical Kills . | . . . . . . . . . . . . . . . . . . Critical Parts Destroyed . | . . . . . . . . . . . . . . . . . . Critical Strikes 15 | . . . . . . . 4 2 . . . 2 6 . . 1 . Sever 7 | . . . . . . . . . . . . . 6 . . 1 . Melee Attacks 414 | . . . . . . . 115 29 34 . 29 41 83 . 15 51 17 Impact 3 | . . . . . . . 2 1 . . . . . . . . . Slashing 402 | . . . . . . . 113 28 34 . 29 41 78 . 15 51 13 Piercing 9 | . . . . . . . . . . . . . 5 . . . 4 Sneak Attacks 44 | . . . . . . . 13 5 . . . 1 9 . 10 6 . Combat Hostiles 2 | . . . . . . . 1 . . . . 1 . . . . . Follow-up Attacks 30 | . . . . . . . 2 2 2 . 2 3 11 . 2 6 . Damage Inflicted 19004 | 70 866 1482 121 . . . 4222 1712 489 . 1269 1408 3198 1027 1301 1560 279 Guns 2161 | 70 866 1104 121 . . . . . . . . . . . . . . Cannons 50 | . . . . . . . 50 . . . . . . . . . . Explosions 2394 | . . 378 . . . . 282 . . . 362 211 134 1027 . . . Melee 14399 | . . . . . . . 3890 1712 489 . 907 1197 3064 . 1301 1560 279 Ramming . | . . . . . . . . . . . . . . . . . . Kinetic 254 | 57 . 134 63 . . . . . . . . . . . . . . Thermal 2283 | 13 866 970 58 . . . 143 . . . . . . 233 . . . Explosive 378 | . . 378 . . . . . . . . . . . . . . . Electromagnetic 1690 | . . . . . . . 189 . . . 362 211 134 794 . . . Impact 122 | . . . . . . . 122 . . . . . . . . . . Slashing 14174 | . . . . . . . 3768 1712 489 . 907 1197 2961 . 1301 1560 279 Piercing 103 | . . . . . . . . . . . . . 103 . . . . Highest Corruption 29 | . 2 2 2 . . . 4 4 . . 29 2 3 3 13 8 1 Average Corruption 2 | . 2 2 2 . . . 1 2 . . 27 1 2 3 5 3 1 Corruption Purged 17 | . . . . . . . . 4 . . . . . . 13 . . Corruption Blocked . | . . . . . . . . . . . . . . . . . . Effects 102 | . 9 25 9 . . . 8 1 . . 7 7 12 4 6 11 3 Message Errors 17 | . 3 1 4 . . . . . . . 1 1 1 2 2 . 2 Matter Fused 28 | . 2 5 2 . . . 4 . . . 2 3 4 . . 6 . Heat Flow Errors 9 | . . 2 1 . . . . . . . . 1 2 . 1 2 . Energy Discharges 16 | . 2 5 1 . . . . . . . 1 2 2 1 1 1 . Parts Rejected 1 | . . . . . . . . . . . . . . . . 1 . Parts Fused 2 | . . 1 . . . . . . . . . . . . 1 . . Data Loss (minor) 15 | . 1 3 1 . . . 3 1 . . 1 . 1 1 1 1 1 Data Loss (major) 6 | . . 2 . . . . 1 . . . 1 . 2 . . . . Misfires 4 | . . 3 . . . . . . . . 1 . . . . . . Weapon Failures 4 | . 1 3 . . . . . . . . . . . . . . . Overload Shots . | . . . . . . . . . . . . . . . . . . Overflow Damage 2372 | . . . . . . . 509 663 129 . 54 43 258 34 397 285 . Projectiles . | . . . . . . . . . . . . . . . . . . Explosions 50 | . . . . . . . 16 . . . . . . 34 . . . Melee 2322 | . . . . . . . 493 663 129 . 54 43 258 . 397 285 . Knockbacks . | . . . . . . . . . . . . . . . . . . Impact . | . . . . . . . . . . . . . . . . . . Kinetic . | . . . . . . . . . . . . . . . . . . Secondary . | . . . . . . . . . . . . . . . . . . Self-Inflicted Damage 143 | . . 90 . . . . 53 . . . . . . . . . . Shots 8 | . . 4 . . . . 4 . . . . . . . . . . Rammed . | . . . . . . . . . . . . . . . . . . Targets Rammed . | . . . . . . . . . . . . . . . . . . Kicked . | . . . . . . . . . . . . . . . . . . Crushed . | . . . . . . . . . . . . . . . . . . Highest Temperature 432 | 45 432 241 241 . . . 36 53 . . 5 124 242 . 199 162 22 Average Temperature 98 | 23 143 35 68 . . . 16 27 . . 3 59 82 . 100 67 8 Received Heat Transfer 2105 | . 177 240 27 . . . 292 109 99 . 84 198 668 . 30 172 9 Effects 7 | . 6 1 . . . . . . . . . . . . . . . Energy Bleed 2 | . 1 1 . . . . . . . . . . . . . . . Interference 3 | . 3 . . . . . . . . . . . . . . . . Matter Decay 1 | . 1 . . . . . . . . . . . . . . . . Damage (minor) 1 | . 1 . . . . . . . . . . . . . . . . Siege Activations . | . . . . . . . . . . . . . . . . . . Martial Activations . | . . . . . . . . . . . . . . . . . . Shielding Activations . | . . . . . . . . . . . . . . . . . . Robots Disrupted 3 | . . . . . . . . . . . 1 . . . 1 1 . Combat Hostiles 2 | . . . . . . . . . . . 1 . . . . 1 . Robots Corrupted 9 | . . . . . . . . . . . 1 . . 8 . . . Combat Hostiles 8 | . . . . . . . . . . . 1 . . 7 . . . Parts Fried 12 | . . . . . . . 3 . . . 1 1 . 7 . . . Impact Corruptions 1 | . . . . . . . 1 . . . . . . . . . . Robots Melted . | . . . . . . . . . . . . . . . . . . Combat Hostiles . | . . . . . . . . . . . . . . . . . . Parts Melted 5 | . . 2 . . . . 2 . . . . . 1 . . . . Heat Transferred 2705 | 37 1124 1195 75 . . . 174 . . . . . . 100 . . . Parts Sabotaged 2 | . . . . . . . . . . . . . . . . 2 . Parts Stolen . | . . . . . . . . . . . . . . . . . . Parts Stripped . | . . . . . . . . . . . . . . . . . . Power Chain Reactions 3 | . . . . . . . 1 . . . . . 1 1 . . . Alert | -11 -10 -10 -8 -8 -6 -6 -6 -6 -6 -6 -5 -5 -5 -5 -5 -5 -4 ------- Run | Yrd Mat Sub Rec Scr Fac Was Fac Low Low Zio Pro Fac Ext Cet Arc Hub Fac Maximum Alert Level 3 | . . . . . . . . . . . . . 3 3 2 3 2 Low Security (%) 68 | 100 100 . 100 . 100 100 100 . . . . 100 73 . . 4 . Level 1 9 | . . . . . . . . . . . . . 4 . 49 12 63 Level 2 16 | . . . . . . . . . . . . . 16 51 50 54 36 Level 3 6 | . . . . . . . . . . . . . 5 48 . 28 . Level 4 . | . . . . . . . . . . . . . . . . . . Level 5 . | . . . . . . . . . . . . . . . . . . High Security . | . . . . . . . . . . . . . . . . . . Max Security . | . . . . . . . . . . . . . . . . . . Peak Influence 955 | 10 172 . 114 . 33 11 198 . . . . 127 934 790 449 955 424 Initial 520 | . . . 60 . . 11 . . . . . 31 9 520 288 107 424 Average 215 | 3 70 . 60 . 10 2 73 . . . . 55 225 688 395 588 374 Influence Increases 6750 | 10 442 375 244 . 33 . 818 . 155 . 340 328 1640 380 271 1617 97 Destroy 0b10 Robot/C 2880 | . 280 140 40 . 20 . 400 . 80 . 220 140 780 160 80 480 60 Destroy 0b10 Robot/NC 235 | 10 30 . 5 . . . 60 . 5 . . . 25 10 45 40 5 Destroy Leader 496 | . 78 10 . . 10 . 122 . 10 . 40 50 72 . . 84 20 Allied During Kill 1401 | . . . . . 3 . . . . . 5 . 581 170 125 517 . Trap Triggered on 0b10 20 | . . . . . . . 20 . . . . . . . . . . Successful Hack 256 | . 24 . 18 . . . 121 . . . . 10 48 . . 35 . Select Force Hacks 260 | . 30 . 180 . . . . . . . . . . . . 50 . Disable Machine 165 | . . . . . . . 60 . . . . 30 30 . 15 30 . Destroy Structure 167 | . . . 1 . . . 20 . . . . 8 14 40 6 66 12 Partial Spotted 15 | . . . . . . . . . . . . . . . . 15 . Lose Combat Pursuer 855 | . . 225 . . . . 15 . 60 . 75 90 90 . . 300 . Influence Decreases 6471 | 10 288 404 369 . . 33 625 193 55 100 289 359 730 590 682 1060 684 Entered New Map 1850 | . . 74 65 . . 22 . 72 . 100 . 20 11 410 432 202 442 Time Decay 3401 | 10 288 260 304 . . 11 415 121 55 . 229 299 449 140 230 368 222 Lost Part 530 | . . 70 . . . . 210 . . . 60 40 50 . . 80 20 Lost Ally 540 | . . . . . . . . . . . . . 220 40 20 260 . Purge Threat 150 | . . . . . . . . . . . . . . . . 150 . Squads Dispatched 31 | . 4 . . . . . 7 . . . . 2 4 . . 10 4 Investigation 11 | . 3 . . . . . 1 . . . . 1 2 . . 2 2 Extermination 8 | . . . . . . . 4 . . . . 1 . . . 2 1 Reinforcement 9 | . 1 . . . . . 2 . . . . . 2 . . 3 1 Assault 3 | . . . . . . . . . . . . . . . . 3 . Garrison . | . . . . . . . . . . . . . . . . . . Intercept . | . . . . . . . . . . . . . . . . . . Searches Triggered . | . . . . . . . . . . . . . . . . . . Construction Impeded 3 | . . . . . . . 1 . . . . . 2 . . . . Haulers Reinforced . | . . . . . . . . . . . . . . . . . . Active Scanning Responses . | . . . . . . . . . . . . . . . . . . Cargo Convoy Interrupts . | . . . . . . . . . . . . . . . . . . Stealth | -11 -10 -10 -8 -8 -6 -6 -6 -6 -6 -6 -5 -5 -5 -5 -5 -5 -4 --------- Run | Yrd Mat Sub Rec Scr Fac Was Fac Low Low Zio Pro Fac Ext Cet Arc Hub Fac Distress Signals 10 | . . . . . . . 1 . . . . 1 . 2 1 5 . Communications Jammed . | . . . . . . . . . . . . . . . . . . Distress Signals . | . . . . . . . . . . . . . . . . . . Times Spotted 237 | . 19 23 1 . 1 6 30 4 6 . 13 16 39 8 6 55 10 Peak Tracking Total 16 | . 3 2 . . 1 5 5 4 4 . 5 4 8 5 2 16 6 Tactical Retreats 23 | . . 7 . . . . 1 . 1 . 2 3 4 . . 5 . Traps | -11 -10 -10 -8 -8 -6 -6 -6 -6 -6 -6 -5 -5 -5 -5 -5 -5 -4 ------- Run | Yrd Mat Sub Rec Scr Fac Was Fac Low Low Zio Pro Fac Ext Cet Arc Hub Fac Traps Triggered 12 | . 2 1 . . 1 . 6 . . . . 1 . . . 1 . Indirectly . | . . . . . . . . . . . . . . . . . . Trap Hack Attempts . | . . . . . . . . . . . . . . . . . . Triggered . | . . . . . . . . . . . . . . . . . . Disarmed 2 | . 2 . . . . . . . . . . . . . . . . Reprogrammed 4 | . . . . . . . 4 . . . . . . . . . . Reused 2 | . . . . . . . 2 . . . . . . . . . . Traps Extracted . | . . . . . . . . . . . . . . . . . . Installed . | . . . . . . . . . . . . . . . . . . Triggered 2 | . . . . . . . 2 . . . . . . . . . . Machines | -11 -10 -10 -8 -8 -6 -6 -6 -6 -6 -6 -5 -5 -5 -5 -5 -5 -4 ---------- Run | Yrd Mat Sub Rec Scr Fac Was Fac Low Low Zio Pro Fac Ext Cet Arc Hub Fac Machines Disabled 16 | . . 3 . . . . 4 . . . . 2 4 . 1 2 . Max in Single Turn 2 | . . 2 . . . . 1 . . . . 1 1 . . . . Garrison Access 5 | . . . . . . . 1 . . . . 2 . . . 1 1 Network Hub 3 | . . . . . . . . . . . . . . . . 3 . Machines Repaired . | . . . . . . . . . . . . . . . . . . Machines Dismantled 2 | . . . . . . . . . . . . . 2 . . . . Machines Sabotaged 1 | . . . . . . . . . . . . . . . . 1 . Overloaded Fab Kills . | . . . . . . . . . . . . . . . . . . Hacking | -11 -10 -10 -8 -8 -6 -6 -6 -6 -6 -6 -5 -5 -5 -5 -5 -5 -4 --------- Run | Yrd Mat Sub Rec Scr Fac Was Fac Low Low Zio Pro Fac Ext Cet Arc Hub Fac Machines Accessed 69 | . 6 . 12 4 . . 13 1 . . . 8 11 1 . 10 3 Terminals 42 | . 5 . 6 . . . 7 . . . . 2 11 1 . 10 . Fabricators 3 | . . . . . . . 1 . . . . 2 . . . . . Repair Stations 1 | . . . . . . . 1 . . . . . . . . . . Recycling Units 10 | . 1 . 6 . . . 1 . . . . . . . . . 2 Scanalyzers 4 | . . . . . . . 2 . . . . 2 . . . . . Garrison Access 4 | . . . . . . . 1 . . . . 2 . . . . 1 Total Hacks 198 | . 25 . 34 14 . . 38 1 . . . 20 25 2 . 35 4 Successful 109 | . 13 . 16 14 . . 21 1 . . . 14 9 . . 18 3 Failed 85 | . 11 . 18 . . . 16 . . . . 5 16 2 . 16 1 Catastrophic 6 | . . . 1 . . . 2 . . . . . 2 . . . 1 Database Lockouts 4 | . 1 . . . . . 1 . . . . 1 . . . 1 . Manual 112 | . 23 . 28 . . . 24 . . . . 4 1 1 . 28 3 Terminals 137 | . 24 . 23 . . . 23 . . . . 5 25 2 . 35 . Fabricators 8 | . . . . . . . 2 . . . . 6 . . . . . Repair Stations 2 | . . . . . . . 2 . . . . . . . . . . Recycling Units 17 | . 1 . 11 . . . 2 . . . . . . . . . 3 Scanalyzers 10 | . . . . . . . 6 . . . . 4 . . . . . Garrison Access 9 | . . . . . . . 3 . . . . 5 . . . . 1 Terminal Hacks 47 | . 4 . 3 14 . . 3 1 . . . 2 9 . . 11 . Record 13 | . . . . 13 . . . . . . . . . . . . . Part Schematic 2 | . . . 1 . . . . . . . . 1 . . . . . Robot Analysis 4 | . 2 . 1 . . . . . . . . . . . . 1 . Prototype ID Bank 2 | . . . . . . . . . . . . . . . . 2 . Open Door 11 | . . . . 1 . . . 1 . . . 1 8 . . . . Terminal Index 2 | . . . . . . . 1 . . . . . . . . 1 . Alert Level 1 | . . . . . . . 1 . . . . . . . . . . Unreport Threat 1 | . . . . . . . . . . . . . . . . 1 . Locate Traps 3 | . 1 . . . . . . . . . . . 1 . . 1 . Disarm Traps 1 | . 1 . . . . . . . . . . . . . . . . Reprogram Traps 1 | . . . . . . . 1 . . . . . . . . . . Zone Layout 6 | . . . 1 . . . . . . . . . . . . 5 . Fabricator Hacks 3 | . . . . . . . . . . . . 3 . . . . . Load Schematic 2 | . . . . . . . . . . . . 2 . . . . . Build 1 | . . . . . . . . . . . . 1 . . . . . Repair Station Hacks 2 | . . . . . . . 2 . . . . . . . . . . Scan Component 1 | . . . . . . . 1 . . . . . . . . . . Repair 1 | . . . . . . . 1 . . . . . . . . . . Recycling Unit Hacks 1 | . . . 1 . . . . . . . . . . . . . . Retrieve Components 1 | . . . 1 . . . . . . . . . . . . . . Scanalyzer 7 | . . . . . . . 4 . . . . 3 . . . . . Insert Component 1 | . . . . . . . 1 . . . . . . . . . . Analyze 1 | . . . . . . . 1 . . . . . . . . . . Retrieve Study 5 | . . . . . . . 2 . . . . 3 . . . . . Garrison Access Hacks 4 | . . . . . . . 1 . . . . 2 . . . . 1 Seal Access 4 | . . . . . . . 1 . . . . 2 . . . . 1 Unauthorized Hacks 45 | . 9 . 12 . . . 11 . . . . 4 . . . 7 2 Terminals 32 | . 8 . 6 . . . 9 . . . . 2 . . . 7 . Track 2 | . . . . . . . . . . . . . . . . 2 . Assimilate 1 | . . . . . . . 1 . . . . . . . . . . Botnet 10 | . 3 . 1 . . . 2 . . . . 1 . . . 3 . Operators 2 | . 1 . . . . . 1 . . . . . . . . . . Skim 15 | . 4 . 5 . . . 5 . . . . 1 . . . . . Sabotage 2 | . . . . . . . . . . . . . . . . 2 . Fabricators 3 | . . . . . . . 1 . . . . 2 . . . . . Report 2 | . . . . . . . 1 . . . . 1 . . . . . Prioritize 1 | . . . . . . . . . . . . 1 . . . . . Repair Stations . | . . . . . . . . . . . . . . . . . . Recycling Units 9 | . 1 . 6 . . . . . . . . . . . . . 2 Tunnel 7 | . 1 . 6 . . . . . . . . . . . . . . Fedlink 2 | . . . . . . . . . . . . . . . . . 2 Scanalyzers . | . . . . . . . . . . . . . . . . . . Garrison Access 1 | . . . . . . . 1 . . . . . . . . . . Watchers 1 | . . . . . . . 1 . . . . . . . . . . Data Cores Recovered 1 | . . . . . . . . . . . . . . . . 1 . Used . | . . . . . . . . . . . . . . . . . . Hacking Detections 41 | . 4 . 6 . . . 12 . . . . 5 5 1 . 8 . Full Trace Events 4 | . 1 . . . . . 1 . . . . 1 1 . . . . Feedback Events . | . . . . . . . . . . . . . . . . . . Feedback Blocked . | . . . . . . . . . . . . . . . . . . Robot Schematics Acquired 3 | . . . . . . . . . . 3 . . . . . . . Robots Built . | . . . . . . . . . . . . . . . . . . Authchips . | . . . . . . . . . . . . . . . . . . Time . | . . . . . . . . . . . . . . . . . . Total Robot Build Rating . | . . . . . . . . . . . . . . . . . . Part Schematics Acquired 17 | . . . 1 . . . 1 . . 14 . 1 . . . . . Parts Built 2 | . . . . . . . . . . . . 2 . . . . . Authchips . | . . . . . . . . . . . . . . . . . . Time 64 | . . . . . . . . . . . . 64 . . . . . Total Part Build Rating 16 | . . . . . . . . . . . . 16 . . . . . Part Studies Acquired 5 | . . . . . . . 2 . . . . 3 . . . . . Parts Repaired 1 | . . . . . . . 1 . . . . . . . . . . Time 10 | . . . . . . . 10 . . . . . . . . . . Parts Recycled . | . . . . . . . . . . . . . . . . . . Recycled Matter . | . . . . . . . . . . . . . . . . . . Retrieved Matter . | . . . . . . . . . . . . . . . . . . Retrieved Components . | . . . . . . . . . . . . . . . . . . Parts Scanalyzed 1 | . . . . . . . 1 . . . . . . . . . . Part Schematics Acquired 1 | . . . . . . . 1 . . . . . . . . . . Parts Damaged . | . . . . . . . . . . . . . . . . . . Bothacking | -11 -10 -10 -8 -8 -6 -6 -6 -6 -6 -6 -5 -5 -5 -5 -5 -5 -4 ------------ Run | Yrd Mat Sub Rec Scr Fac Was Fac Low Low Zio Pro Fac Ext Cet Arc Hub Fac Used RIF Installer . | . . . . . . . . . . . . . . . . . . Robots Hacked 1 | . . . . . . . . . . 1 . . . . . . . Non-combat . | . . . . . . . . . . . . . . . . . . Combat 1 | . . . . . . . . . . 1 . . . . . . . Robot Hacks Applied 1 | . . . . . . . . . . 1 . . . . . . . parse_system 1 | . . . . . . . . . . 1 . . . . . . . Relay Couplers Released 1 | . . . . . . . . . . . . . . . . 1 . Machine Destruction 1 | . . . . . . . . . . . . . . . . 1 . Fabnet Peak Effective % . | . . . . . . . . . . . . . . . . . . Robots Rewired 18 | . . . . . . . . . . . . . 17 . . 1 . Allies Hacked . | . . . . . . . . . . . . . . . . . . Hacks Repelled . | . . . . . . . . . . . . . . . . . . Allies | -11 -10 -10 -8 -8 -6 -6 -6 -6 -6 -6 -5 -5 -5 -5 -5 -5 -4 -------- Run | Yrd Mat Sub Rec Scr Fac Was Fac Low Low Zio Pro Fac Ext Cet Arc Hub Fac Total Allies 38 | . . . . 1 . . 1 . . 3 . . 27 5 . 1 . Largest Group 16 | . . . . 1 1 1 1 . . 3 3 . 14 16 15 14 . Highest-Rated Group 956 | . . . . 60 60 60 10 . . 95 95 . 544 956 797 795 . Highest-Rated Ally 159 | . . . . 60 60 60 10 . . 39 39 . 159 159 96 96 . Initial UFD Resources 28 | . . . . . 22 22 22 22 22 22 24 24 24 24 24 24 28 Total Orders 6 | . . . . . . . . . . . . . . . . 6 . STAY 6 | . . . . . . . . . . . . . . . . 6 . Ally Attacks 389 | . . . . . 2 15 . . . . 11 . 231 23 23 84 . Total Damage 7976 | . . . . . 83 52 . . . . 154 . 4044 668 695 2280 . Kills 51 | . . . . . 1 . . . . . 1 . 26 . 5 18 . Allies Corrupted 3 | . . . . . . . . . . . . . 1 . . 2 . Allies Melted . | . . . . . . . . . . . . . . . . . . Intel | -11 -10 -10 -8 -8 -6 -6 -6 -6 -6 -6 -5 -5 -5 -5 -5 -5 -4 ------- Run | Yrd Mat Sub Rec Scr Fac Was Fac Low Low Zio Pro Fac Ext Cet Arc Hub Fac Active Infowar (turns) 9020 | 12 584 . . . 32 89 1150 1382 489 929 669 839 1238 294 218 757 338 Optics 119 | . . . . . . . . . . . . . . . . . 119 Sensors 3794 | . . . . . . . 768 . . . . 269 1198 294 218 757 290 Terrain 1153 | 12 584 . . . 32 89 282 154 . . . . . . . . . Structural 4779 | . . . . . 31 89 413 1359 489 929 669 760 40 . . . . Traps 302 | . . . . . . . . . . . 29 54 . . . . 219 Seismic 282 | . . . . . . . . . . . . . . . . . 282 Decoding 2128 | . . . . . . . . . . 362 669 839 258 . . . . Robot Analysis Total 4 | . 2 . 1 . . . . . . . . . . . . 1 . Derelict Logs Recovered 9 | . . 1 . 2 . . . 3 1 2 . . . . . . . Drone Launches . | . . . . . . . . . . . . . . . . . . Drone Recoveries . | . . . . . . . . . . . . . . . . . . Decoded 0b10 Intel 30 | . . . . . . . . . . . . 24 6 . . . . Traps 6 | . . . . . . . . . . . . 5 1 . . . . Emergency Access 2 | . . . . . . . . . . . . 2 . . . . . Items 18 | . . . . . . . . . . . . 14 4 . . . . Machines 2 | . . . . . . . . . . . . 1 1 . . . . Patrols 1 | . . . . . . . . . . . . 1 . . . . . Guards 1 | . . . . . . . . . . . . 1 . . . . . Exploration | -11 -10 -10 -8 -8 -6 -6 -6 -6 -6 -6 -5 -5 -5 -5 -5 -5 -4 ------------- Run | Yrd Mat Sub Rec Scr Fac Was Fac Low Low Zio Pro Fac Ext Cet Arc Hub Fac Turns Passed 14444 | 32 884 1491 681 1951 34 89 1633 1382 489 929 669 839 1238 298 496 840 469 Spaces Moved 10973 | 11 389 1093 599 1712 28 84 1168 1281 458 1005 405 563 703 170 253 602 449 Core 91 | . . . . . . . . . . . . . . . . 91 . Treads 413 | 1 389 23 . . . . . . . . . . . . . . . Legs 2499 | 10 . . . . . . 14 . . . 220 563 703 170 253 510 56 Wheels 7576 | . . 1070 599 1712 28 84 1154 1281 458 1005 185 . . . . . . Hover 394 | . . . . . . . . . . . . . . . . 1 393 Flight . | . . . . . . . . . . . . . . . . . . Fastest Speed 44 | 120 160 105 105 105 96 96 83 80 84 84 100 105 116 116 116 50 44 Average Speed 104 | 123 160 109 105 108 96 100 100 89 84 84 134 113 118 117 116 107 60 Slowest Speed 315 | 160 160 160 105 135 96 110 195 95 84 101 260 120 119 119 116 315 130 Overloaded Moves . | . . . . . . . . . . . . . . . . . . Propulsion Burnouts . | . . . . . . . . . . . . . . . . . . Robots Hopped . | . . . . . . . . . . . . . . . . . . Potential Cave-ins 6 | . . 6 . . . . . . . . . . . . . . . Cave-ins Triggered . | . . . . . . . . . . . . . . . . . . Exploration Rate (%) 56 | 3 83 58 98 86 1 69 31 97 50 85 37 12 83 56 86 73 9 Regions Visited 17 Branch Regions 11 Pre-discovered Areas 13 | . 1 . 6 2 . . 2 . . 1 . . . . . . 1 Known Exits Taken 9 | . . . . . . . 1 1 1 1 1 1 1 1 1 . . Unknown Exits Taken 6 | 1 1 1 1 1 . . . . . . . . . . . 1 . Scrap Searched 20 | . . 5 . 6 . . . 3 3 2 1 . . . . . . Spaces Dug 68 | . . 9 . . . . 19 2 20 . . 4 2 . . 6 6 Terrain Destroyed 201 | . . 125 1 . . . 19 2 20 . . 4 2 16 . 6 6 Melee 51 | . . . . . . . 12 2 19 . . 4 2 . . 6 6 Projectile 13 | . . 11 1 . . . . . 1 . . . . . . . . AOE 137 | . . 114 . . . . 7 . . . . . . 16 . . . Terrain Rammed . | . . . . . . . . . . . . . . . . . . Walls Destroyed . | . . . . . . . . . . . . . . . . . . Machines Disabled . | . . . . . . . . . . . . . . . . . . Actions | -11 -10 -10 -8 -8 -6 -6 -6 -6 -6 -6 -5 -5 -5 -5 -5 -5 -4 --------- Run | Yrd Mat Sub Rec Scr Fac Was Fac Low Low Zio Pro Fac Ext Cet Arc Hub Fac Total 13150 | 20 572 1246 644 1816 36 88 1447 1473 511 1080 484 701 990 257 435 733 617 Wait 1092 | . 119 50 20 61 1 3 91 139 13 62 35 59 39 65 148 66 121 Move 10957 | 10 388 1092 598 1711 28 83 1167 1280 457 1004 404 562 702 169 252 601 449 Hop . | . . . . . . . . . . . . . . . . . . Pick Up 102 | . 11 5 6 18 1 . 15 7 2 2 1 9 12 2 4 3 4 Fast Attach 89 | 1 . 4 1 1 . 1 21 7 1 3 6 7 5 1 4 6 20 Attach 44 | 2 . 6 1 2 6 . 11 2 . . 4 4 4 . 1 1 . Detach 15 | . . 1 2 . . . 8 1 . . 1 . . . 2 . . Swap 78 | . 6 8 3 2 . . 6 5 3 2 3 8 14 6 6 4 2 Drop 105 | 2 4 1 8 21 . 1 9 6 3 5 . 12 11 5 5 4 8 Fire 163 | 5 44 79 5 . . . 6 . 4 2 4 3 2 9 . . . Melee 365 | . . . . . . . 112 26 28 . 26 37 69 . 13 41 13 Ram . | . . . . . . . . . . . . . . . . . . Kick . | . . . . . . . . . . . . . . . . . . Crush . | . . . . . . . . . . . . . . . . . . Escape Stasis . | . . . . . . . . . . . . . . . . . . Rewire 123 | . . . . . . . . . . . . . 116 . . 7 . Trap . | . . . . . . . . . . . . . . . . . . Miscellaneous 17 | . . . . . . . 1 . . . . . 16 . . . . Route ------- -11/Scrapyard -10/Materials (discovered 5 exits: [*Mat x2] / [*Min x2] / [*Sub]) -10/Subcaves (discovered 3 exits: [*Mat x2] / *Rec) -8/Recycling (discovered 2 exits: [*Fac] / *Scr) -8/Scraptown (discovered 2 exits: [*Fac x2]) -6/Factory -6/Waste -6/Factory (discovered 4 exits: Fac x3 / *Low) -6/Lower Caves -6/Lower Caves (discovered 2 exits: Fac / *Zio) -6/Zion (discovered 2 exits: Dee / *Pro) -5/Proximity Caves -5/Factory (discovered 2 exits: Upp / *Ext) -5/Extension (discovered 2 exits: *Fac / *Cet) -5/Cetus (discovered 2 exits: *Fac / *Arc) -5/Archives (discovered 3 exits: *Fac / *Hub x2) -5/Hub_04(d) -4/Factory History --------- Turn | Location | Event 17 | -11/Scrapyard | Discovered new exit (range 3) 33 | -11/Scrapyard | Entered Materials 239 | -10/Materials | Discovered new exit (range 12) 303 | -10/Materials | Build established: Mutant 361 | -10/Materials | Discovered new exit (range 10) 364 | -10/Materials | Central database locked down 683 | -10/Materials | Discovered new exit (range 13) 778 | -10/Materials | Discovered new exit (range 10) 878 | -10/Materials | Discovered new exit (range 9) 917 | -10/Materials | Entered Subcaves 918 | -10/Subcaves | Approached by a straggling Scientist 1063 | -10/Subcaves | Ambushed by Subdwellers from Twisted Machinery 1232 | -10/Subcaves | A swath of the cavern ceiling suddenly collapsed 1266 | -10/Subcaves | Learned Materials stockpile data 1281 | -10/Subcaves | Shifting Twisted Machinery released Sub. Shrapnel Launcher 1293 | -10/Subcaves | Shifting Twisted Machinery released Scrap Shield 1361 | -10/Subcaves | Shifting Twisted Machinery released Mak. Thermal Plating 1378 | -10/Subcaves | Shifting Twisted Machinery released Sub. Optics 1609 | -10/Subcaves | Core integrity fell below 50% 1708 | -10/Subcaves | Discovered new exit (range 14) 2190 | -10/Subcaves | Shifting Twisted Machinery released Hvy. Riot Gun 2304 | -10/Subcaves | Discovered new exit (range 6) 2388 | -10/Subcaves | Core integrity fell below 20% 2396 | -10/Subcaves | Discovered new exit (range 7) 2408 | -10/Subcaves | Entered Recycling 2569 | -8/Recycling | Scanned before Scraplab entrance 2589 | -8/Recycling | Discovered new exit (range 12) 3022 | -8/Recycling | Learned Factory emergency access door positions 3080 | -8/Recycling | Entered Scraplab 3088 | -8/Recycling | Discovered new exit (range 2) 3089 | -8/Recycling | Entered Scraptown 3089 | -8/Scraptown | System corruption cleaned by C-Scrubber 3279 | -8/Scraptown | Visited UFD Registry 3279 | -8/Scraptown | Registered with UFD as "Gunhacker" 3306 | -8/Scraptown | Visited The Evicted 3329 | -8/Scraptown | Visited Fellowship of the Rings 3341 | -8/Scraptown | Visited Shadow of the Wyrm 3352 | -8/Scraptown | Visited Assassins FH 3359 | -8/Scraptown | Visited Cyclists 3375 | -8/Scraptown | Entered Cyclist Reading Room 3378 | -8/Scraptown | Learned location of Zion (-6) 3429 | -8/Scraptown | Visited Cave Peace 3638 | -8/Scraptown | Scanned Subdweller tech in exchange for log data 3640 | -8/Scraptown | Learned Research stockpile data 3641 | -8/Scraptown | Learned location of 2 exits from Lower Caves 3822 | -8/Scraptown | Discovered new exit (range 11) 3932 | -8/Scraptown | Visited Scrap Suit Storage 3949 | -8/Scraptown | Visited Sword Containment 3959 | -8/Scraptown | Found Prototype Slashing Weapon 3984 | -8/Scraptown | Visited Scrapoid Pod Storage 4081 | -8/Scraptown | Visited Infowarlord's Domain 4089 | -8/Scraptown | Found Exp. Sensor Array 4111 | -8/Scraptown | Visited DA-N13 Charitable Foundation 4120 | -8/Scraptown | Found DCF Scrap (32 items) 4160 | -8/Scraptown | Visited Scrapoid Research Area 4181 | -8/Scraptown | Visited Observation Area 4197 | -8/Scraptown | Visited Botcube Research 4366 | -8/Scraptown | Found Scrap Suit 4631 | -8/Scraptown | Identified Companion Sword 4726 | -8/Scraptown | Found Botcube 4859 | -8/Scraptown | Botcube activated 4881 | -8/Scraptown | Botcube completed mutation into wheeled form, armed with 2 cannons. 4924 | -8/Scraptown | Visited Curators Association 4959 | -8/Scraptown | Met Optimus 4959 | -8/Scraptown | Accepted into 0bPrime 5018 | -8/Scraptown | Discovered new exit (range 3) 5040 | -8/Scraptown | Entered Factory 5040 | -6/Factory | Accompanied by 1 ally 5040 | -6/Factory | Evolved 8 slots: Propulsion x3, Utility x5 5074 | -6/Factory | Sucked down chute 5074 | -6/Factory | Entered Waste 5077 | -6/Waste | Found Prototype Processor 5077 | -6/Waste | Identified Exp. Targeting Computer 5086 | -6/Waste | Spotted C-40 Crusher 5094 | -6/Waste | 1 allies followed down the chute 5097 | -6/Waste | Spotted C-40 Crusher 5109 | -6/Waste | Spotted C-40 Crusher 5113 | -6/Waste | Spotted C-40 Crusher 5118 | -6/Waste | Spotted C-40 Crusher 5123 | -6/Waste | Spotted C-40 Crusher 5133 | -6/Waste | Crushed by Compactor (1 part destroyed, 1 dropped) 5153 | -6/Waste | Discovered new exit (range 10) 5163 | -6/Waste | Entered Factory 5449 | -6/Factory | Build established: Hacker-Mutant 5711 | -6/Factory | Central database locked down 5965 | -6/Factory | Identified exit to Lower Caves 6017 | -6/Factory | Identified exit to Factory 6059 | -6/Factory | Learned location of 1 exit from Proximity Caves 6089 | -6/Factory | Learned location of 1 exit from Lower Caves 6091 | -6/Factory | Repaired Arm. Wheel 6108 | -6/Factory | Learned Extension non-interactive machine intel 6115 | -6/Factory | Learned 4 Extension zone layouts 6125 | -6/Factory | Learned location of Warlord (-5) 6144 | -6/Factory | Learned location of 2 exits from Archives 6357 | -6/Factory | Destroyed 7 combat bots 6363 | -6/Factory | Lost 9 parts (4n3u2w) 6521 | -6/Factory | Lost 3 parts (3n) 6653 | -6/Factory | Lost 5 parts (1p2n1u1w) 6746 | -6/Factory | Core integrity fell below 50% 6796 | -6/Factory | Entered Lower Caves 6797 | -6/Lower Caves | Identified exit to Lower Caves 7047 | -6/Lower Caves | Learned location of 1 exit from Factory 7056 | -6/Lower Caves | Build established: Scavenger-Gladiator 7397 | -6/Lower Caves | Encountered a Warlord checkpoint 7631 | -6/Lower Caves | Learned location of 1 exit from Factory 7671 | -6/Lower Caves | Ambushed by wild Derelicts 8178 | -6/Lower Caves | Entered another Lower Caves area 8179 | -6/Lower Caves | Identified exit to Zion 8247 | -6/Lower Caves | Learned Factory terminal intel 8344 | -6/Lower Caves | Encountered a Warlord checkpoint 8667 | -6/Lower Caves | Entered Zion 8706 | -6/Zion | Discovered new exit (range 16) 8743 | -6/Zion | Gained Derelict followers 8799 | -6/Zion | Identified exit to Deep Caves 8831 | -6/Zion | Found CR-A16's Pointy Stick 8953 | -6/Zion | Learned 4 Factory zone layouts 9002 | -6/Zion | Turned away by Imprinter 9434 | -6/Zion | Identified exit to Proximity Caves 9596 | -6/Zion | Entered Proximity Caves 9596 | -5/Proximity Caves | Accompanied by 3 allies 9807 | -5/Proximity Caves | Lost 3 parts (2n1u) 9884 | -5/Proximity Caves | Lost 5 parts (1p2n2u) 9936 | -5/Proximity Caves | Core integrity fell below 20% 10079 | -5/Proximity Caves | Build established: Derelict-Gladiator 10141 | -5/Proximity Caves | Lost 3 parts (1p1n1u) 10148 | -5/Proximity Caves | System corruption reached 10% 10265 | -5/Proximity Caves | Entered Factory 10265 | -5/Factory | Evolved 2 slots: Utility x2 10266 | -5/Factory | Identified exit to Extension 10266 | -5/Factory | Identified exit to Upper Caves 10268 | -5/Factory | Loaded intel: 27 terminal locations 10630 | -5/Factory | Build established: Scavenger-Gladiator 10632 | -5/Factory | Fabricated Imp. Thunder Leg (x2) 10771 | -5/Factory | Central database locked down 11033 | -5/Factory | Spotted B-75 Beast 11104 | -5/Factory | Entered Extension 11106 | -5/Extension | Loaded intel: 25 non-interactive machine locations 11124 | -5/Extension | Build established: Gladiator 11166 | -5/Extension | Rescued a captive Derelict 11168 | -5/Extension | Rescued a captive Derelict 11187 | -5/Extension | Rescued a captive Derelict 11436 | -5/Extension | Lost 3 allies 11488 | -5/Extension | Rescued a captive Derelict 11490 | -5/Extension | Rescued a captive Derelict 11514 | -5/Extension | Rescued a captive Derelict 11605 | -5/Extension | Build established: Commander-Gladiator 11758 | -5/Extension | Spotted B-75 Beast 11765 | -5/Extension | Spotted B-75 Beast 11784 | -5/Extension | Allies destroyed B-75 Beast 11786 | -5/Extension | Destroyed B-75 Beast 11826 | -5/Extension | Lost 5 allies 11830 | -5/Extension | Lost 4 parts (1n3u) 12027 | -5/Extension | Rescued A7 12041 | -5/Extension | Rescued a captive Derelict 12050 | -5/Extension | Rescued a captive Derelict 12100 | -5/Extension | Rescued a captive Derelict 12199 | -5/Extension | Lost 3 allies 12209 | -5/Extension | Rescued a captive Derelict 12255 | -5/Extension | Rescued a captive Derelict 12262 | -5/Extension | Rescued a captive Derelict 12298 | -5/Extension | Discovered new exit (range 10) 12299 | -5/Extension | Discovered new exit (range 6) 12311 | -5/Extension | Identified exit to Cetus 12342 | -5/Extension | Entered Cetus 12342 | -5/Cetus | Accompanied by 13 allies (A7) 12347 | -5/Cetus | Acquired a Cetus Manufacturing Module code from A7 12360 | -5/Cetus | Spotted Cetus Guard 12361 | -5/Cetus | Spotted Cetus Guard 12367 | -5/Cetus | Destroyed Cetus Guard 12367 | -5/Cetus | Spotted Cetus Guard 12369 | -5/Cetus | Destroyed Cetus Guard 12369 | -5/Cetus | Destroyed Cetus Guard 12369 | -5/Cetus | Spotted Cetus Guard 12371 | -5/Cetus | Destroyed Cetus Guard 12425 | -5/Cetus | Started Cetus Manufacturing Module 12450 | -5/Cetus | Manufactured an Enhanced Grunt 12460 | -5/Cetus | Discovered new exit (range 15) 12475 | -5/Cetus | Manufactured an Enhanced Grunt 12486 | -5/Cetus | Spotted Cetus Guard 12487 | -5/Cetus | Spotted Cetus Guard 12491 | -5/Cetus | Destroyed Cetus Guard 12491 | -5/Cetus | Spotted Cetus Guard 12493 | -5/Cetus | Spotted Cetus Guard 12494 | -5/Cetus | Destroyed Cetus Guard 12500 | -5/Cetus | Manufactured an Enhanced Grunt 12500 | -5/Cetus | Destroyed Cetus Guard 12501 | -5/Cetus | Destroyed Cetus Guard 12519 | -5/Cetus | Discovered new exit (range 15) 12525 | -5/Cetus | Manufactured an Enhanced Grunt 12525 | -5/Cetus | Met Revision 17 12550 | -5/Cetus | Manufactured an Enhanced Grunt 12593 | -5/Cetus | Identified exit to Archives 12640 | -5/Cetus | Entered Archives 12640 | -5/Archives | Accompanied by 16 allies (A7) 12641 | -5/Archives | Identified exit to Hub_04(d) 12706 | -5/Archives | System corruption reached 10% 12820 | -5/Archives | Discovered new exit (range 14) 13136 | -5/Archives | Entered Hub_04(d) 13136 | -5/Hub_04(d) | Accompanied by 14 allies 13231 | -5/Hub_04(d) | Discovered new exit (range 12) 13458 | -5/Hub_04(d) | Central database locked down 13720 | -5/Hub_04(d) | Network Hub disabled 13720 | -5/Hub_04(d) | Watched by a mysterious "MATRIX" hacker. 13736 | -5/Hub_04(d) | First assault squad dispatched 13829 | -5/Hub_04(d) | Network Hub disabled 13829 | -5/Hub_04(d) | Network Hub disabled 13893 | -5/Hub_04(d) | Lost 3 parts (1n1u1w) 13911 | -5/Hub_04(d) | Spotted Lightning 13913 | -5/Hub_04(d) | Spotted Lightning 13920 | -5/Hub_04(d) | Released all parts (8) 13926 | -5/Hub_04(d) | Core integrity fell below 50% 13949 | -5/Hub_04(d) | Lost 5 parts (2n3u) 13949 | -5/Hub_04(d) | Spotted Lightning 13949 | -5/Hub_04(d) | Spotted Lightning 13949 | -5/Hub_04(d) | Spotted Lightning 13954 | -5/Hub_04(d) | Core integrity fell below 20% 13976 | -5/Hub_04(d) | Entered Factory 13976 | -4/Factory | Evolved 2 slots: Power x1, Utility x1 14110 | -4/Factory | Loaded intel: 8 recycling unit locations 14165 | -4/Factory | Learned location of Protoforge (-3) 14445 | -4/Factory | Self-destructed Last Messages --------------- 14283_ Acquired System Shield. 14285_ Acquired System Restoration Module. 14287_ Acquired Lgt. Deuterium Engine. 14288_ Acquired 25 matter. 14289_ Acquired Imp. Hover Unit. 14326_ Dropped Adv. Trap Scanner. 14326_ Acquired Enh. Optical Array. 14334_ |3 HN0&K6CW&VNJRK=7 YU 14338_ U-05 Engineer builds a Wall. 14366_ ALERT: Potential suspicious activity detected, Programmers report to Factory Zone 5M. 14376_ A5SN YWOVM>9AE%F6L=&=S